fUSD/lending_fUSD_20240803
["ID","MTS","AMOUNT","RATE_DAILY","PERIOD"]
[333994245,1722666785998,-155.4443706,0.00017799,2]
[333994246,1722666786008,-156.23232131,0.00017807,2]
[333994247,1722666786019,-218.61135827,0.00017807,2]
[333994248,1722666786029,-155.0,0.00017807,2]
[333994249,1722666786041,-552.42,0.00017808,2]
[333994250,1722666786053,-1570.63,0.00017808,2]
[333994251,1722666786064,-685.3,0.00018082,2]
[333994252,1722666786075,-1360.09,0.00018082,2]
[333994253,1722666786085,-552.42,0.00018082,2]
[333994254,1722666786094,-1570.63,0.00018082,2]
[333994255,1722666786104,-685.3,0.00018356,2]
[333994256,1722666786114,-1360.09,0.00018356,2]
[333994257,1722666786123,-552.42,0.00018356,2]
[333994258,1722666786136,-2603.67,0.0001863,2]
[333994259,1722666786146,-500.0,0.0001863,2]
[333994260,1722666786157,-685.3,0.0001863,2]
[333994261,1722666786167,-1360.09,0.0001863,2]
[333994262,1722666786176,-552.42,0.0001863,2]
[333994263,1722666786185,-3594.13,0.00018904,2]
[333994264,1722666786194,-2603.67,0.00018904,2]
[333994265,1722666786203,-500.0,0.00018904,2]
[333994266,1722666786213,-685.3,0.00018904,2]
[333994267,1722666786223,-1360.09,0.00018904,2]
[333994268,1722666786233,-552.42,0.00018904,2]
[333994269,1722666786242,-196.303,0.00018999,2]
[333994270,1722666786254,-1780.87,0.00019178,2]
[333994271,1722666786263,-1004.22,0.00019178,2]
[333994272,1722666786273,-931.92678525,0.00019178,2]
[333994273,1722666786290,-2662.20321475,0.00019178,2]
[333994274,1722666786299,-2603.67,0.00019178,2]
[333994275,1722666786310,-21.64430264,0.00019178,2]
[333994276,1722666787925,-942.66174752,0.00018356,2]
[333994277,1722666787941,-627.96825248,0.00018356,2]
[333994278,1722666787951,-478.35569736,0.00019178,2]
[333994279,1722666787960,-685.3,0.00019178,2]
[333994280,1722666787970,-1360.09,0.00019178,2]
[333994281,1722666787980,-552.42,0.00019178,2]
[333994282,1722666787990,-805.39670546,0.00019452,2]
[333994283,1722666788000,-500.0,0.00019452,2]
[333994284,1722666788009,-669.89,0.00019452,2]
[333994285,1722666788019,-500.0,0.00019452,2]
[333994286,1722666788028,-500.0,0.00019452,2]
[333994287,1722666788037,-791.15,0.00019452,2]
[333994288,1722666788047,-1652.52,0.00019452,2]
[333994289,1722666788066,-936.75,0.00019452,2]
[333994290,1722666788076,-1126.33,0.00019452,2]
[333994291,1722666788085,-500.0,0.00019452,2]
[333994292,1722666788095,-500.0,0.00019452,2]
[333994293,1722666788104,-1115.3,0.00019452,2]
[333994294,1722666788114,-1818.33,0.00019452,2]
[333994295,1722666788124,-621.62,0.00019452,2]
[333994296,1722666788133,-218.27594999,0.00019452,2]
[333994297,1722666788142,-814.86,0.00019452,2]
[333994298,1722666788152,-500.0,0.00019452,2]
[333994299,1722666788161,-764.75,0.00019452,2]
[333994300,1722666788171,-721.8,0.00019452,2]
[333994301,1722666788180,-353.25858375,0.00019452,2]
[333994302,1722666788190,-1488.46,0.00019452,2]
[333994303,1722666788200,-422.55977691,0.00019452,2]
[333994304,1722666788211,-500.0,0.00019452,2]
[333994305,1722666788224,-1556.25,0.00019452,2]
[333994306,1722666788234,-500.0,0.00019452,2]
[333994307,1722666788244,-930.37,0.00019452,2]
[333994308,1722666788253,-1099.96,0.00019452,2]
[333994309,1722666788264,-541.23,0.00019452,2]
[333994310,1722666788276,-862.02,0.00019452,2]
[333994311,1722666788287,-782.39,0.00019452,2]
[333994312,1722666788298,-665.68,0.00019452,2]
[333994313,1722666788318,-236.66349033,0.00019452,2]
[333994314,1722666788328,-273.86144833,0.00019452,2]
[333994315,1722666788337,-406.90789414,0.00019452,2]
[333994316,1722666788347,-660.12,0.00019452,2]
[333994317,1722666788356,-708.64,0.00019452,2]
[333994318,1722666788367,-500.0,0.00019452,2]
[333994319,1722666788376,-709.52,0.00019452,2]
[333994320,1722666788386,-500.0,0.00019452,2]
[333994321,1722666788395,-500.0,0.00019452,2]
[333994322,1722666788404,-681.92,0.00019452,2]
[333994323,1722666788413,-510.64,0.00019452,2]
[333994324,1722666788424,-500.0,0.00019452,2]
[333994325,1722666788434,-500.0,0.00019452,2]
[333994326,1722666788444,-1423.39,0.00019452,2]
[333994327,1722666788454,-500.0,0.00019452,2]
[333994328,1722666788463,-419.56736413,0.00019452,2]
[333994329,1722666788473,-3672.91,0.00019452,2]
[333994330,1722666788482,-796.7,0.00019452,2]
[333994331,1722666788492,-500.0,0.00019452,2]
[333994332,1722666788503,-714.52,0.00019452,2]
[333994333,1722666788514,-2042.73,0.00019452,2]
[333994334,1722666788524,-500.0,0.00019452,2]
[333994335,1722666788534,-552.5,0.00019452,2]
[333994336,1722666788544,-1054.46,0.00019452,2]
[333994337,1722666788560,-2805.89,0.00019452,2]
[333994338,1722666788569,-675.88,0.00019452,2]
[333994339,1722666788579,-1088.81,0.00019452,2]
[333994340,1722666788588,-1433.51,0.00019452,2]
[333994341,1722666788598,-500.0,0.00019452,2]
[333994342,1722666788607,-4007.83,0.00019452,2]
[333994343,1722666788616,-762.84,0.00019452,2]
[333994344,1722666788625,-3217.66,0.00019452,2]
[333994345,1722666788634,-500.0,0.00019452,2]
[333994346,1722666788643,-500.0,0.00019452,2]
[333994347,1722666788654,-2200.75,0.00019452,2]
[333994348,1722666788666,-951.76,0.00019452,2]
[333994349,1722666788676,-1702.58,0.00019452,2]
[333994350,1722666788685,-2092.77,0.00019452,2]
[333994351,1722666788695,-652.04,0.00019452,2]
[333994352,1722666788704,-500.0,0.00019452,2]
[333994353,1722666788714,-5244.42,0.00019452,2]
[333994354,1722666788724,-500.0,0.00019452,2]
[333994355,1722666788734,-693.09,0.00019452,2]
[333994356,1722666788745,-761.36,0.00019452,2]
[333994357,1722666788755,-2038.36,0.00019452,2]
[333994358,1722666788765,-4346.28,0.00019452,2]
[333994359,1722666788774,-1475.27,0.00019452,2]
[333994360,1722666788784,-710.45,0.00019452,2]
[333994361,1722666788793,-2061.72,0.00019452,2]
[333994362,1722666788803,-744.05,0.00019452,2]
[333994363,1722666788813,-1223.68,0.00019452,2]
[333994364,1722666788822,-1359.7,0.00019452,2]
[333994365,1722666788832,-4500.27,0.00019452,2]
[333994366,1722666788841,-11630.47,0.00019452,2]
[333994367,1722666788851,-1729.93,0.00019452,2]
[333994368,1722666788860,-842.12,0.00019452,2]
[333994369,1722666788869,-1992.28,0.00019452,2]
[333994370,1722666788879,-7815.4,0.00019452,2]
[333994371,1722666788888,-500.0,0.00019452,2]
[333994372,1722666788897,-872.75,0.00019452,2]
[333994373,1722666788906,-1230.65,0.00019452,2]
[333994374,1722666788915,-1652.65,0.00019452,2]
[333994375,1722666788924,-1417.26,0.00019452,2]
[333994376,1722666788933,-24317.71,0.00019452,2]
[333994377,1722666788942,-500.0,0.00019452,2]
[333994378,1722666788951,-1381.62,0.00019452,2]
[333994379,1722666788961,-8359.0,0.00019452,2]
[333994380,1722666788971,-500.0,0.00019452,2]
[333994381,1722666788980,-2959.52,0.00019452,2]
[333994382,1722666788989,-1125.68,0.00019452,2]
[333994383,1722666788999,-2625.72,0.00019452,2]
[333994384,1722666789008,-500.0,0.00019452,2]
[333994385,1722666789017,-541.08,0.00019452,2]
[333994386,1722666789026,-1606.59,0.00019452,2]
[333994387,1722666789035,-4129.44,0.00019452,2]
[333994388,1722666789045,-765.03,0.00019452,2]
[333994389,1722666789055,-500.0,0.00019452,2]
[333994390,1722666789063,-1071.89,0.00019452,2]
[333994391,1722666789073,-8009.82,0.00019452,2]
[333994392,1722666789082,-500.0,0.00019452,2]
[333994393,1722666789092,-500.0,0.00019452,2]
[333994394,1722666789101,-4309.68,0.00019452,2]
[333994395,1722666789110,-677.22,0.00019452,2]
[333994396,1722666789120,-3498.32,0.00019452,2]
[333994397,1722666789130,-1008.21,0.00019452,2]
[333994398,1722666789139,-500.0,0.00019452,2]
[333994399,1722666789148,-678.45,0.00019452,2]
[333994400,1722666789158,-2091.29,0.00019452,2]
[333994401,1722666789167,-3261.4,0.00019452,2]
[333994402,1722666789176,-2329.21,0.00019452,2]
[333994403,1722666789186,-1982.62,0.00019452,2]
[333994404,1722666789195,-6585.94,0.00019452,2]
[333994405,1722666789204,-532.0,0.00019452,2]
[333994406,1722666789214,-2347.25,0.00019452,2]
[333994407,1722666789224,-595.79,0.00019452,2]
[333994408,1722666789233,-1438.93,0.00019452,2]
[333994409,1722666789242,-1558.03,0.00019452,2]
[333994410,1722666789252,-10052.34215239,0.00019452,2]
[333994411,1722666789267,-880.8,0.00019452,2]
[333994412,1722666789279,-1080.47784761,0.00019452,2]
[333994413,1722666789288,-3194.48,0.00019452,2]
[333994414,1722666789298,-3237.49,0.00019452,2]
[333994415,1722666789308,-1245.88,0.00019452,2]
[333994416,1722666789317,-869.05,0.00019452,2]
[333994417,1722666789326,-500.0,0.00019452,2]
[333994418,1722666789336,-1081.77963237,0.00019452,2]
[333994419,1722666790558,-155.0,0.00014899,2]
[333994420,1722666790567,-112.22567297,0.00015311,2]
[333994421,1722666790578,-101.26232703,0.00015311,2]
[333994422,1722666790587,-500.0,0.00016438,2]
[333994423,1722666790597,-777.5405086,0.00016438,2]
[333994424,1722666790615,-5204.7194914,0.00016438,2]
[333994425,1722666790625,-500.0,0.00016438,2]
[333994426,1722666790635,-500.0,0.00016712,2]
[333994427,1722666790645,-5982.26,0.00016712,2]
[333994428,1722666790655,-500.0,0.00016986,2]
[333994429,1722666790667,-2144.08330696,0.00017004,2]
[333994430,1722666790676,-500.0,0.0001726,2]
[333994431,1722666790686,-500.0,0.00017534,2]
[333994432,1722666790695,-359.08278976,0.00017799,2]
[333994433,1722666790704,-243.04057273,0.00017807,2]
[333994434,1722666790714,-156.89967865,0.00017808,2]
[333994435,1722666790724,-1570.63,0.0001863,2]
[333994436,1722666790733,-1570.63,0.00018904,2]
[333994437,1722666790744,-1570.63,0.00019178,2]
[333994438,1722666790755,-2476.92036763,0.00019452,2]
[333994439,1722666790764,-1516.63,0.00019452,2]
[333994440,1722666790774,-2240.39,0.00019452,2]
[333994441,1722666790783,-2444.23,0.00019452,2]
[333994442,1722666790793,-4848.71,0.00019452,2]
[333994443,1722666790803,-1275.84,0.00019452,2]
[333994444,1722666790812,-2528.58,0.00019452,2]
[333994445,1722666790822,-7111.63,0.00019452,2]
[333994446,1722666790832,-1234.51,0.00019452,2]
[333994447,1722666790842,-1577.42,0.00019452,2]
[333994448,1722666790854,-500.0,0.00019452,2]
[333994449,1722666790865,-3976.74,0.00019452,2]
[333994450,1722666790875,-914.84,0.00019452,2]
[333994451,1722666790885,-1179.29,0.00019452,2]
[333994452,1722666790894,-522.63,0.00019452,2]
[333994453,1722666790903,-2341.98,0.00019452,2]
[333994454,1722666790913,-2827.3,0.00019452,2]
[333994455,1722666790923,-1379.48,0.00019452,2]
[333994456,1722666790933,-2100.90379289,0.00019452,2]
[333994457,1722666790945,-11468.79620711,0.00019452,2]
[333994458,1722666790955,-1254.92,0.00019452,2]
[333994459,1722666790965,-989.03,0.00019452,2]
[333994460,1722666790974,-867.22,0.00019452,2]
[333994461,1722666790984,-1520.15,0.00019452,2]
[333994462,1722666790995,-4544.83,0.00019452,2]
[333994463,1722666791006,-1100.73,0.00019452,2]
[333994464,1722666791017,-797.96,0.00019452,2]
[333994465,1722666791027,-799.61,0.00019452,2]
[333994466,1722666791038,-5638.64,0.00019452,2]
[333994467,1722666791049,-1242.0,0.00019452,2]
[333994468,1722666791061,-500.0,0.00019452,2]
[333994469,1722666791071,-500.0,0.00019452,2]
[333994470,1722666791081,-500.0,0.00019452,2]
[333994471,1722666791090,-941.33,0.00019452,2]
[333994472,1722666791099,-560.97,0.00019452,2]
[333994473,1722666791108,-1488.46,0.00019452,2]
[333994474,1722666791118,-920.3,0.00019452,2]
[333994475,1722666791128,-3017.99,0.00019452,2]
[333994476,1722666791138,-500.0,0.00019452,2]
[333994477,1722666791148,-1976.61,0.00019452,2]
[333994478,1722666791158,-980.35,0.00019452,2]
[333994479,1722666791167,-2347.93,0.00019452,2]
[333994480,1722666791177,-500.0,0.00019452,2]
[333994481,1722666791186,-3028.02,0.00019452,2]
[333994482,1722666791196,-1182.86,0.00019452,2]
[333994483,1722666791206,-663.52,0.00019452,2]
[333994484,1722666791217,-1315.97,0.00019452,2]
[333994485,1722666791227,-1429.57,0.00019452,2]
[333994486,1722666791236,-1009.6,0.00019452,2]
[333994487,1722666791246,-500.0,0.00019452,2]
[333994488,1722666791256,-535.59,0.00019452,2]
[333994489,1722666791266,-1659.64,0.00019452,2]
[333994490,1722666791276,-2820.52,0.00019452,2]
[333994491,1722666791287,-2112.36,0.00019452,2]
[333994492,1722666791297,-4031.55,0.00019452,2]
[333994493,1722666791307,-2096.17,0.00019452,2]
[333994494,1722666791317,-1049.02,0.00019452,2]
[333994495,1722666791327,-10150.27,0.00019452,2]
[333994496,1722666791336,-1206.49,0.00019452,2]
[333994497,1722666791346,-1122.59,0.00019452,2]
[333994498,1722666791357,-576.06,0.00019452,2]
[333994499,1722666791366,-793.05,0.00019452,2]
[333994500,1722666791376,-3672.81,0.00019452,2]
[333994501,1722666791385,-1726.0,0.00019452,2]
[333994502,1722666791395,-3286.16,0.00019452,2]
[333994503,1722666791405,-3453.65,0.00019452,2]
[333994504,1722666791415,-500.0,0.00019452,2]
[333994505,1722666791426,-1612.0,0.00019452,2]
[333994506,1722666791436,-15160.97,0.00019452,2]
[333994507,1722666791446,-1516.13,0.00019452,2]
[333994508,1722666791456,-1029.84,0.00019452,2]
[333994509,1722666791465,-1177.76,0.00019452,2]
[333994510,1722666791475,-681.33,0.00019452,2]
[333994511,1722666791486,-7716.14,0.00019452,2]
[333994512,1722666791496,-500.0,0.00019452,2]
[333994513,1722666791506,-2110.03,0.00019452,2]
[333994514,1722666791516,-1577.4,0.00019452,2]
[333994515,1722666791526,-685.05959877,0.00019452,2]
[333994516,1722666791540,-4826.09040123,0.00019452,2]
[333994517,1722666791550,-1050.57,0.00019452,2]
[333994518,1722666791560,-500.0,0.00019452,2]
[333994519,1722666791570,-797.55,0.00019452,2]
[333994520,1722666791580,-1109.84351904,0.00019452,2]
[333994521,1722666791591,-1424.83648096,0.00019452,2]
[333994522,1722666791601,-500.0,0.00019452,2]
[333994523,1722666791611,-2306.35,0.00019452,2]
[333994524,1722666791621,-3191.49,0.00019452,2]
[333994525,1722666791631,-681.76,0.00019452,2]
[333994526,1722666791641,-500.0,0.00019452,2]
[333994527,1722666791651,-517.29,0.00019452,2]
[333994528,1722666791661,-77.33605762,0.00019452,2]
[333994529,1722666791731,-2513.32394238,0.00019452,2]
[333994530,1722666791743,-500.0,0.00019452,2]
[333994531,1722666791753,-2269.33,0.00019452,2]
[333994532,1722666791763,-500.0,0.00019452,2]
[333994533,1722666791773,-4486.63,0.00019452,2]
[333994534,1722666791782,-1395.7,0.00019452,2]
[333994535,1722666791792,-571.15,0.00019452,2]
[333994536,1722666791804,-2172.92,0.00019452,2]
[333994537,1722666791818,-927.9,0.00019452,2]
[333994538,1722666791828,-642.08,0.00019452,2]
[333994539,1722666791838,-500.0,0.00019452,2]
[333994540,1722666791848,-420.96605762,0.00019452,2]
[333994541,1722666791882,-873.80203649,0.00019452,2]
[333994542,1722666791894,-580.70190589,0.00019452,2]
[333994543,1722666791903,-551.94,0.00019452,2]
[333994544,1722666791913,-443.33114907,0.00019452,2]
[333994545,1722666791924,-1260.25885093,0.00019452,2]
[333994546,1722666791934,-13.3811491,0.00019452,2]
[333994547,1722666791946,-287.93164596,0.00019452,2]
[333994548,1722666791972,-1445.34720494,0.00019452,2]
[333994549,1722666791982,-500.0,0.00019452,2]
[333994550,1722666791991,-784.82,0.00019452,2]
[333994551,1722666792000,-591.2,0.00019452,2]
[333994552,1722666792011,-353.27829206,0.00019452,2]
[333994553,1722666792023,-495.80170794,0.00019452,2]
[333994554,1722666792033,-110.33399588,0.00019452,2]
[333994555,1722666792109,-387.22333188,0.00019452,2]
[333994556,1722666792121,-1095.64650338,0.00019452,2]
[333994563,1722667831897,-357.66858002,0.00012818,2]
[333994564,1722667831907,-200.0,0.000129,2]
[333994565,1722667831916,-37.21847802,0.00013033,2]
[333994566,1722667831994,-505.36152198,0.00013033,2]
[333994567,1722667832004,-151.29,0.00013699,2]
[333994568,1722667832014,-6189.59286234,0.00013879,2]
[333994578,1722667837772,-1041.25,0.00013879,2]
[333994618,1722667838924,-642.047345,0.00013879,2]
[333994620,1722667838936,-342.07446815,0.00013879,2]
[333994622,1722667838948,-500.0,0.00013879,2]
[333994624,1722667838959,-667.57069182,0.00013879,2]
[333994708,1722667840274,-998.76399795,0.00013879,2]
[333994709,1722667840285,-448.93956244,0.00013879,2]
[333994710,1722667840296,-686.56648555,0.00013879,2]
[333994711,1722667840328,-383.0020099,0.00013879,2]
[333994712,1722667840355,-10739.85435655,0.00013879,2]
[333994713,1722667840364,-2144.08330696,0.00013999,2]
[333994714,1722667840374,-400.0,0.0001427,2]
[333994715,1722667840384,-179.97,0.00014921,30]
[333994716,1722667840393,-1622.19894296,0.00014988,2]
[333994718,1722667840402,-20029.48089212,0.00015,7]
[333994720,1722667840411,-250.0,0.00015015,2]
[333994722,1722667840421,-7111.7909,0.00015205,2]
[333994724,1722667840430,-542.58,0.00015297,2]
[333994726,1722667840439,-150.0,0.00015342,2]
[333994728,1722667840449,-1274.49304289,0.00015369,2]
[333994730,1722667840465,-161.13,0.00015376,2]
[333994732,1722667840474,-757.76574524,0.0001551,2]
[333994734,1722667840484,-235.93956325,0.0001551,2]
[333994736,1722667840494,-150.0,0.0001551,2]
[333994738,1722667840504,-757.76574524,0.00015527,2]
[333994740,1722667840513,-235.93956325,0.00015527,2]
[333994742,1722667840523,-757.76574524,0.00015544,2]
[333994744,1722667840532,-235.93956325,0.00015544,2]
[333994746,1722667840541,-613.24581613,0.00015562,2]
[333994748,1722667840553,-144.51992911,0.00015562,2]
[333994751,1722667840568,-164.35507089,0.00015562,2]
[333994753,1722667840580,-71.58449236,0.00015562,2]
[333994755,1722667840589,-415.8030321,0.00015579,2]
[333994758,1722667840609,-341.96271314,0.00015579,2]
[333994760,1722667840618,-235.93956325,0.00015579,2]
[333994762,1722667840628,-313.00485237,0.00015597,2]
[333994965,1722667843006,-444.76089287,0.00015597,2]
[333994967,1722667843015,-235.93956325,0.00015597,2]
[333994969,1722667843024,-757.76574524,0.00015614,2]
[333994971,1722667843035,-235.93956325,0.00015614,2]
[333994973,1722667843045,-757.76574524,0.00015631,2]
[333994975,1722667843054,-235.93956325,0.00015631,2]
[333994977,1722667843064,-757.76574524,0.00015649,2]
[333994979,1722667843073,-235.93956325,0.00015649,2]
[333994981,1722667843083,-757.76574524,0.00015666,2]
[333994983,1722667843092,-235.93956325,0.00015666,2]
[333994985,1722667843101,-170.461,0.00015666,2]
[333994987,1722667843111,-757.76574524,0.00015684,2]
[333994988,1722667843121,-235.93956325,0.00015684,2]
[333994990,1722667843130,-757.76574524,0.00015701,2]
[333994992,1722667843139,-235.93956325,0.00015701,2]
[333994994,1722667843149,-757.76574524,0.00015718,2]
[333994996,1722667843158,-235.93956325,0.00015718,2]
[333994998,1722667843168,-757.76574524,0.00015736,2]
[333995000,1722667843177,-235.93956325,0.00015736,2]
[333995002,1722667843186,-757.76574524,0.00015753,2]
[333995004,1722667843196,-235.93956325,0.00015753,2]
[333995006,1722667843205,-757.76574524,0.00015771,2]
[333995008,1722667843214,-235.93956325,0.00015771,2]
[333995010,1722667843223,-757.76574524,0.00015788,2]
[333995012,1722667843232,-235.93956325,0.00015788,2]
[333995014,1722667843243,-757.76574524,0.00015806,2]
[333995016,1722667843252,-235.93956325,0.00015806,2]
[333995019,1722667843262,-228.3,0.00015818,2]
[333995021,1722667843273,-757.76574524,0.00015823,2]
[333995023,1722667843282,-235.93956325,0.00015823,2]
[333995025,1722667843292,-757.76574524,0.0001584,2]
[333995027,1722667843301,-235.93956325,0.0001584,2]
[333995029,1722667843311,-757.76574524,0.00015858,2]
[333995031,1722667843320,-235.93956325,0.00015858,2]
[333995033,1722667843329,-150.99,0.0001587,2]
[333995035,1722667843339,-757.76574524,0.00015875,2]
[333995037,1722667843348,-235.93956325,0.00015875,2]
[333995039,1722667843357,-757.76574524,0.00015893,2]
[333995040,1722667843367,-235.93956325,0.00015893,2]
[333995041,1722667843377,-1396.4382,0.00015899,2]
[333995042,1722667843396,-177.27904047,0.00015899,2]
[333995043,1722667843406,-757.76574524,0.0001591,2]
[333995044,1722667843416,-26.67531384,0.0001591,2]
[333995046,1722667843432,-209.26424941,0.0001591,2]
[333995048,1722667843441,-757.76574524,0.00015927,2]
[333995050,1722667843451,-235.93956325,0.00015927,2]
[333995051,1722667843460,-757.76574524,0.00015945,2]
[333995052,1722667843470,-235.93956325,0.00015945,2]
[333995053,1722667843479,-757.76574524,0.00015962,2]
[333995054,1722667843489,-235.93956325,0.00015962,2]
[333995055,1722667843498,-757.76574524,0.0001598,2]
[333995056,1722667843508,-235.93956325,0.0001598,2]
[333995057,1722667843518,-757.76574524,0.00015997,2]
[333995058,1722667843527,-235.93956325,0.00015997,2]
[333995059,1722667843536,-8176.04654031,0.00015999,2]
[333995067,1722667845076,-107176.17963801,0.00015999,2]
[333995068,1722667845086,-2561.436,0.00015999,2]
[333995069,1722667845096,-35697.33254384,0.00015999,2]
[333995070,1722667845106,-757.76574524,0.00016014,2]
[333995071,1722667845117,-235.93956325,0.00016014,2]
[333995072,1722667845126,-757.76574524,0.00016032,2]
[333995073,1722667845136,-235.93956325,0.00016032,2]
[333995074,1722667845146,-1112.40214539,0.00016033,2]
[333995075,1722667845156,-757.76574524,0.00016049,2]
[333995076,1722667845165,-235.93956325,0.00016049,2]
[333995086,1722667846334,-757.76574524,0.00016067,2]
[333995087,1722667846358,-235.93956325,0.00016067,2]
[333995088,1722667846376,-757.76574524,0.00016084,2]
[333995089,1722667846385,-235.93956325,0.00016084,2]
[333995090,1722667846395,-150.0,0.00016084,2]
[333995091,1722667846405,-757.76574524,0.00016101,2]
[333995092,1722667846414,-235.93956325,0.00016101,2]
[333995093,1722667846424,-757.76574524,0.00016119,2]
[333995094,1722667846433,-235.93956325,0.00016119,2]
[333995095,1722667846442,-757.76574524,0.00016136,2]
[333995096,1722667846452,-235.93956325,0.00016136,2]
[333995097,1722667846461,-757.76574524,0.00016154,2]
[333995098,1722667846470,-235.93956325,0.00016154,2]
[333995099,1722667846479,-1073.73542888,0.00016159,2]
[333995100,1722667846489,-757.76574524,0.00016171,2]
[333995101,1722667846498,-235.93956325,0.00016171,2]
[333995102,1722667846507,-757.76574524,0.00016188,2]
[333995103,1722667846517,-235.93956325,0.00016188,2]
[333995104,1722667846528,-757.76574524,0.00016206,2]
[333995105,1722667846537,-235.93956325,0.00016206,2]
[333995106,1722667846547,-757.76574524,0.00016223,2]
[333995107,1722667846557,-235.93956325,0.00016223,2]
[333995108,1722667846566,-757.76574524,0.00016241,2]
[333995109,1722667846575,-235.93956325,0.00016241,2]
[333995110,1722667846585,-757.76574524,0.00016258,2]
[333995111,1722667846594,-235.93956325,0.00016258,2]
[333995112,1722667846604,-757.76574524,0.00016275,2]
[333995113,1722667846613,-235.93956325,0.00016275,2]
[333995114,1722667846623,-757.76574524,0.00016293,2]
[333995115,1722667846632,-235.93956325,0.00016293,2]
[333995116,1722667846642,-1000.0,0.00016297,2]
[333995117,1722667846652,-757.76574524,0.0001631,2]
[333995118,1722667846661,-235.93956325,0.0001631,2]
[333995119,1722667846671,-757.76574524,0.00016328,2]
[333995120,1722667846681,-235.93956325,0.00016328,2]
[333995121,1722667846691,-883.86743112,0.00016338,2]
[333995122,1722667846702,-857.5982,0.00016338,2]
[333995123,1722667846711,-7500.0,0.00016338,2]
[333995124,1722667846721,-757.76574524,0.00016345,2]
[333995125,1722667846731,-235.93956325,0.00016345,2]
[333995126,1722667846741,-757.76574524,0.00016363,2]
[333995127,1722667846751,-235.93956325,0.00016363,2]
[333995128,1722667846761,-757.76574524,0.0001638,2]
[333995129,1722667846771,-235.93956325,0.0001638,2]
[333995130,1722667846781,-757.76574524,0.00016397,2]
[333995131,1722667846791,-235.93956325,0.00016397,2]
[333995132,1722667846801,-150.0,0.000164,2]
[333995133,1722667846811,-757.76574524,0.00016415,2]
[333995134,1722667846821,-235.93956325,0.00016415,2]
[333995135,1722667846831,-20173.1298096,0.00016428,2]
[333995136,1722667846841,-757.76574524,0.00016432,2]
[333995137,1722667846851,-235.93956325,0.00016432,2]
[333995138,1722667846861,-501.65873819,0.00016438,2]
[333995139,1722667846871,-545.15813193,0.00016438,2]
[333995140,1722667846881,-501.28078973,0.00016438,2]
[333995141,1722667846890,-500.0,0.00016438,2]
[333995142,1722667846900,-500.0,0.00016438,2]
[333995143,1722667846910,-500.0,0.00016438,2]
[333995144,1722667846919,-500.0,0.00016438,2]
[333995145,1722667846929,-500.0,0.00016438,2]
[333995146,1722667846939,-500.0,0.00016438,2]
[333995147,1722667846949,-500.0,0.00016438,2]
[333995148,1722667846959,-500.0,0.00016438,2]
[333995149,1722667846973,-500.0,0.00016438,2]
[333995150,1722667846983,-500.0,0.00016438,2]
[333995151,1722667846993,-500.0,0.00016438,2]
[333995152,1722667847003,-500.73294538,0.00016438,2]
[333995153,1722667847013,-500.0,0.00016438,2]
[333995154,1722667847025,-500.0,0.00016438,2]
[333995155,1722667847035,-500.0,0.00016438,2]
[333995156,1722667847045,-500.0,0.00016438,2]
[333995157,1722667847055,-500.0,0.00016438,2]
[333995158,1722667847066,-500.0,0.00016438,2]
[333995159,1722667847075,-500.0,0.00016438,2]
[333995160,1722667847085,-500.0,0.00016438,2]
[333995161,1722667847094,-544.07372826,0.00016438,2]
[333995162,1722667847104,-500.90130481,0.00016438,2]
[333995163,1722667847114,-500.0,0.00016438,2]
[333995164,1722667847124,-500.0,0.00016438,2]
[333995165,1722667847133,-405.72814762,0.00016438,2]
[333995166,1722667847143,-500.0,0.00016438,2]